bitfinex/quotes_ETHUSD_20250217
["timestamp","ask_amount","ask_price","bid_price","bid_amount"]
[1739821573681,3.8167,2715.1,2714.1,3.68437]
[1739821573987,0.74997,2715.0,2714.5,3.68391]
[1739821574193,0.8167,2715.1,2714.0,0.03684157]
[1739821574487,0.8167,2715.1,2714.3,3.68406]
[1739821574674,0.8167,2715.1,2714.5,3.68387]
[1739821577260,0.8167,2715.1,2714.5,3.68385]
[1739821577554,0.8167,2715.1,2714.7,3.6836]
[1739821577781,0.8167,2715.1,2714.5,3.68384]
[1739821577982,0.8167,2715.1,2714.4,3.68393]
[1739821578381,0.8167,2715.1,2714.6,3.68377]
[1739821578585,0.8167,2715.1,2714.7,3.68364]
[1739821578785,4.96246902,2715.1,2715.0,3.68324]
[1739821579694,0.7753,2715.7,2715.4,3.68269]
[1739821579863,5.73776902,2715.7,2714.6,1.93926043]
[1739821580064,5.73776902,2715.7,2715.3,3.68283]
[1739821580270,5.73776902,2715.7,2715.4,3.68268]
[1739821581804,4.96246902,2715.7,2715.6,3.68242]
[1739821583298,0.8279,2716.3,2716.0,3.68186]
[1739821583703,0.8279,2716.3,2716.0,7.36366]
[1739821583867,4.96246902,2716.4,2716.0,3.68178]
[1739821584505,4.96246902,2716.4,2715.8,0.03681682]
[1739821584799,4.96246902,2716.4,2716.3,3.68147]
[1739821585508,4.96246902,2716.4,2716.2,3.6816]
[1739821585687,4.96246902,2716.4,2716.2,3.68153]
[1739821585891,4.96246902,2716.4,2716.2,3.6815]
[1739821586305,4.96246902,2716.4,2716.2,7.36304]
[1739821586491,4.96246902,2716.4,2716.2,3.6815]
[1739821586692,4.96246902,2716.4,2716.0,3.68176]
[1739821586878,4.96246902,2716.4,2715.9,3.68201]
[1739821587075,4.96246902,2716.4,2715.7,0.8031]
[1739821587318,4.96246902,2716.4,2716.3,3.68147]
[1739821588500,4.96246902,2716.4,2716.3,4.049617]
[1739821588703,4.96246902,2716.4,2716.2,4.4794]
[1739821588889,4.96246902,2716.8,2716.4,3.68126]
[1739821589088,5.72496902,2717.2,2716.6,3.68099]
[1739821589981,5.72496902,2717.2,2716.7,3.68092]
[1739821590300,5.72496902,2717.2,2716.3,3.68139]
[1739821590506,1.46114195,2717.1,2716.3,3.68147]
[1739821590829,1.46114195,2717.1,2716.4,3.68123]
[1739821591925,1.46114195,2717.1,2716.3,3.68137]
[1739821592296,1.46114195,2717.1,2716.4,3.68134]
[1739821592497,1.46114195,2717.1,2716.2,0.7978]
[1739821592699,1.46114195,2717.1,2716.5,3.68112]
[1739821593031,1.46114195,2717.1,2716.6,3.68097]
[1739821593231,1.46114195,2717.1,2716.6,3.68098]
[1739821593409,1.46114195,2717.1,2716.4,3.68123]
[1739821593607,1.46114195,2717.1,2716.5,3.6812]
[1739821593812,1.46114195,2717.1,2716.4,3.68123]
[1739821594333,1.46114195,2717.1,2716.5,3.68117]
[1739821594833,6.42361097,2717.1,2716.6,3.68099]
[1739821596109,6.42361097,2717.1,2716.5,3.6812]
[1739821596341,6.42361097,2717.1,2716.5,3.6811]
[1739821596513,6.42361097,2717.1,2716.2,0.7978]
[1739821596716,6.42361097,2717.1,2716.6,3.681]
[1739821597235,4.96246902,2717.1,2716.7,3.68087]
[1739821597532,4.96246902,2717.1,2716.9,3.6806]
[1739821597950,4.96246902,2717.1,2716.6,3.68096]
[1739821598243,4.96246902,2717.1,2716.4,7.36251]
[1739821598444,4.96246902,2717.1,2716.4,3.68128]
[1739821598647,0.5724969,2717.0,2716.4,3.68128]
[1739821599753,0.5724969,2717.0,2716.5,3.68114]
[1739821600819,5.53496592,2717.0,2716.5,3.68114]
[1739821601557,5.53496592,2717.0,2716.4,3.68128]
[1739821601751,5.53496592,2717.0,2716.5,3.6812]
[1739821605430,5.53496592,2717.0,2716.4,3.68128]
[1739821605754,5.53496592,2717.0,2716.5,3.68114]
[1739821605960,0.55349659,2716.9,2716.5,3.68114]
[1739821606969,0.55349659,2716.9,2716.3,3.6814]
[1739821607142,0.55349659,2716.9,2716.4,3.68125]
[1739821607327,0.55349659,2716.9,2716.5,3.68118]
[1739821607660,0.55349659,2716.9,2716.5,3.68109]
[1739821609062,0.55349659,2716.9,2716.3,7.36277]
[1739821609268,0.55349659,2716.9,2716.4,3.68132]
[1739821610138,6.27006558,2716.8,2716.0,3.68175]
[1739821610338,6.27006558,2716.8,2716.1,3.68168]
[1739821610751,0.756,2716.7,2716.0,3.68185]
[1739821610928,0.756,2716.7,2716.2,3.68154]
[1739821611128,4.96246902,2716.8,2716.4,3.68123]
[1739821612163,4.96246902,2716.8,2716.5,3.68111]
[1739821612566,4.96246902,2716.8,2716.6,3.68101]
[1739821612931,4.96246902,2716.8,2716.4,3.68126]
[1739821613133,4.96246902,2716.8,2716.5,3.68113]
[1739821615871,4.96246902,2716.8,2716.4,4.049386]
[1739821615872,0.756,2717.0,2716.6,0.03680891]
[1739821616056,4.96246902,2717.4,2716.6,0.03680891]
[1739821616057,0.8265,2717.3,2716.7,3.68084]
[1739821616560,0.8265,2717.3,2716.5,3.6811]
[1739821616561,0.8265,2717.3,2716.6,3.68106]
[1739821616938,4.50662,2717.3,2716.4,4.45674]
[1739821617137,5.13970375,2717.2,2716.5,3.68119]
[1739821617463,0.9469089,2717.2,2716.6,3.38098]
[1739821617772,0.8265,2717.3,2716.9,3.68056]
[1739821619669,0.8265,2717.3,2716.8,3.68067]
[1739821619969,0.8265,2717.3,2716.9,3.68064]
[1739821620471,0.8265,2717.3,2716.7,3.68087]
[1739821620671,0.7925,2717.2,2716.5,3.68111]
[1739821621051,0.7925,2717.2,2716.5,7.36223]
[1739821621389,0.7925,2717.2,2716.9,3.68057]
[1739821621584,5.75496902,2717.2,2716.6,0.0368053]
[1739821621785,5.75496902,2717.2,2716.8,3.68069]
[1739821622284,5.75496902,2717.2,2716.6,3.68098]
[1739821622664,6.33046592,2717.2,2716.7,3.68082]
[1739821623894,6.33046592,2717.2,2716.8,3.68072]
[1739821624192,6.33046592,2717.2,2716.7,3.68088]
[1739821624620,5.75496902,2717.2,2716.5,3.6812]
[1739821624790,4.96246902,2717.2,2717.0,3.68042]
[1739821625792,4.96246902,2717.2,2717.1,3.68039]
[1739821625980,4.96246902,2717.2,2717.0,7.36083]
[1739821626185,4.96246902,2717.2,2716.7,3.68082]
[1739821626367,4.96246902,2717.2,2716.7,7.36167]
[1739821626698,4.96246902,2717.2,2716.8,3.6808]
[1739821627064,4.96246902,2717.2,2716.9,3.68066]
[1739821627269,4.96246902,2717.2,2717.0,3.68041]
[1739821628087,4.96246902,2717.2,2717.1,3.68039]
[1739821628261,5.77766902,2717.7,2717.4,3.67992]
[1739821629102,5.77766902,2717.7,2717.3,0.809]
[1739821629103,4.96246902,2717.7,2717.3,0.809]
[1739821629295,4.96246902,2717.7,2717.5,3.67985]
[1739821629614,4.96246902,2717.7,2717.5,3.67973]
[1739821630382,4.96246902,2717.7,2717.6,3.67971]
[1739821630781,4.96246902,2717.7,2717.4,7.35983]
[1739821631104,4.96246902,2717.7,2717.5,3.67982]
[1739821631278,4.5925245,2718.6,2717.4,3.67988]
[1739821631279,4.96246902,2718.2,2717.8,3.6794]
[1739821631608,4.96246902,2718.2,2717.8,3.67942]
[1739821631779,4.96246902,2718.2,2718.0,3.67916]
[1739821631978,4.96246902,2718.2,2717.9,3.6793]
[1739821632503,4.96246902,2718.2,2717.6,3.67961]
[1739821632708,5.53597592,2718.2,2717.6,7.35926]
[1739821632871,5.53597592,2718.2,2717.6,3.67961]
[1739821633071,5.53597592,2718.2,2717.7,3.6795]
[1739821633273,5.53597592,2718.2,2717.6,3.67961]
[1739821633510,5.53597592,2718.2,2717.8,3.67941]
[1739821633711,4.96246902,2718.2,2717.8,3.67936]
[1739821633887,4.96246902,2718.2,2717.9,3.67929]
[1739821634072,4.96246902,2718.2,2717.8,3.67936]
[1739821634473,4.96246902,2718.2,2717.6,0.0367902]
[1739821634670,4.96246902,2718.2,2717.8,3.67935]
[1739821635283,4.96246902,2718.2,2717.8,3.67944]
[1739821635487,4.19279485,2718.0,2717.2,3.68025]
[1739821635711,4.19279485,2718.0,2717.4,3.67993]
[1739821636133,2.215,2717.9,2717.4,3.67993]
[1739821636299,3.0053,2718.1,2717.5,3.67977]
[1739821636630,8.03159661,2718.0,2717.4,3.67991]
[1739821637030,8.03159661,2718.0,2717.2,3.68018]
[1739821637195,8.03159661,2718.0,2717.3,3.68]
[1739821637528,8.03159661,2718.0,2717.2,3.68018]
[1739821637703,5.81659661,2718.0,2717.6,3.67963]
[1739821637909,0.66068966,2717.9,2717.6,3.67963]
[1739821638407,0.66068966,2717.9,2717.3,0.03679724]
[1739821638408,0.66068966,2717.9,2717.3,3.68011]
[1739821638612,0.7845,2717.5,2716.4,0.7787]
[1739821638835,0.7845,2717.3,2716.6,3.68098]
[1739821639041,1.21547639,2717.2,2716.6,3.68098]
[1739821639330,1.21547639,2717.2,2716.7,3.68092]
[1739821639662,1.21547639,2717.2,2716.8,3.68073]
[1739821640103,1.21547639,2717.2,2716.6,7.36193]
[1739821640310,1.21547639,2717.2,2716.6,3.68095]
[1739821640636,1.21547639,2717.2,2716.3,3.0]
[1739821640934,0.7845,2717.3,2716.8,3.68072]
[1739821641697,0.7845,2717.3,2716.6,3.68097]
[1739821641900,0.7845,2717.3,2716.6,7.36194]
[1739821642108,0.7845,2717.3,2716.4,0.747094]
[1739821642109,4.96246902,2717.2,2716.4,3.68128]
[1739821642305,0.758,2717.0,2716.4,3.68128]
[1739821642795,0.758,2717.0,2716.2,3.68155]
[1739821643139,5.72046902,2716.9,2716.2,3.68155]
[1739821643324,5.72046902,2716.9,2716.3,3.68141]
[1739821644148,5.72046902,2716.9,2716.3,3.68147]
[1739821644443,0.7935469,2716.8,2716.0,3.68188]
[1739821644663,0.7935469,2716.8,2716.4,3.68125]
[1739821645069,0.7935469,2716.8,2716.3,3.68139]
[1739821645531,0.7935469,2716.8,2716.3,3.68147]
[1739821645720,0.7935469,2716.8,2716.2,3.68152]
[1739821645926,0.7935469,2716.8,2716.3,3.68134]
[1739821646725,5.72046902,2716.9,2716.7,3.68082]
[1739821646928,5.72046902,2716.9,2716.8,3.6808]
[1739821646929,4.96246902,2716.9,2716.8,3.6808]
[1739821647424,4.66086902,2716.9,2716.8,3.6808]
[1739821649925,4.66086902,2716.9,2716.8,4.4793]
[1739821650121,4.66086902,2716.9,2716.8,4.5004926]
[1739821650326,4.66086902,2716.9,2716.7,3.68082]
[1739821650627,5.48276902,2716.9,2716.7,7.36167]
[1739821650827,5.48276902,2716.9,2716.7,3.68087]
[1739821651431,5.48276902,2716.9,2716.8,3.6808]
[1739821651630,4.66086902,2716.9,2716.8,3.6808]
[1739821651931,4.66086902,2716.9,2716.8,4.42064768]
[1739821653164,4.66086902,2716.9,2716.8,5.19424768]
[1739821653664,4.66086902,2716.9,2716.8,4.42064768]
[1739821655396,0.8219,2717.5,2717.2,3.68025]
[1739821655563,0.8219,2717.5,2717.0,3.6804]
[1739821655970,0.8219,2717.5,2717.1,3.68039]
[1739821656404,0.8219,2717.5,2717.3,3.68011]
[1739821656580,0.8219,2717.7,2717.3,3.68001]
[1739821657309,4.66086902,2717.8,2717.7,3.67958]
[1739821657484,0.8219,2718.0,2717.1,4.51335916]
[1739821657485,0.8219,2718.0,2717.6,3.67965]
[1739821657809,0.8219,2718.0,2717.7,3.67948]
[1739821657980,0.8219,2718.0,2717.6,3.67965]
[1739821658187,0.8219,2718.0,2717.8,3.67943]
[1739821658582,0.8219,2718.0,2717.7,3.6795]
[1739821658891,0.8219,2718.0,2717.6,3.67964]
[1739821659269,0.8219,2718.0,2717.4,3.67997]
[1739821659475,0.8219,2718.0,2717.6,3.67967]
[1739821659899,0.8219,2718.0,2717.5,3.67984]
[1739821660102,0.8219,2718.0,2717.5,7.3596]
[1739821660310,0.8219,2718.0,2717.5,0.73596]
[1739821660504,0.8219,2718.0,2717.6,3.67971]
[1739821660704,0.8219,2718.0,2717.5,3.67978]
[1739821660922,0.8219,2718.0,2717.4,7.35977]
[1739821661127,0.8219,2718.0,2717.5,3.67983]
[1739821661475,0.8219,2718.0,2717.4,3.67988]
[1739821661677,0.8219,2718.0,2717.4,7.35978]
[1739821661989,0.8219,2718.0,2717.5,3.67974]
[1739821662493,0.8219,2718.0,2717.4,3.67988]
[1739821662696,0.8219,2718.0,2717.6,3.6797]
[1739821662891,0.8219,2718.0,2717.5,3.67978]
[1739821663107,0.8219,2718.0,2717.6,3.67966]
[1739821663308,5.48276902,2718.0,2717.6,3.6796]
[1739821663529,5.48276902,2718.0,2717.9,3.67931]
[1739821663826,4.66086902,2718.0,2717.9,3.67931]
[1739821664415,0.8097,2718.2,2718.1,3.67904]
[1739821664618,0.8097,2718.4,2718.1,3.67904]
[1739821664930,5.47056902,2718.4,2718.2,3.67886]
[1739821665146,0.8097,2718.7,2718.3,3.67876]
[1739821665359,1.11217,2718.7,2718.3,3.67876]
[1739821665790,0.8097,2718.7,2718.3,3.67876]
[1739821666351,0.8097,2718.7,2718.5,3.67849]
[1739821667053,0.759,2719.0,2718.6,3.67828]
[1739821667261,0.759,2719.0,2718.5,3.67849]
[1739821667779,0.759,2719.0,2718.3,3.67876]
[1739821667920,0.759,2718.8,2718.1,3.67894]
[1739821668121,0.8124,2718.6,2717.9,3.67921]
[1739821668751,0.8124,2718.6,2718.1,3.67903]
[1739821668958,0.8124,2718.6,2718.2,3.67883]
[1739821669172,0.8124,2718.6,2717.9,3.67921]
[1739821669479,0.8124,2718.6,2718.1,7.35797]
[1739821669620,0.8124,2718.6,2718.1,7.35793]
[1739821669820,0.8124,2718.6,2718.1,3.67896]
[1739821670050,0.8124,2718.6,2717.9,3.67922]
[1739821670326,0.8124,2718.6,2718.1,3.67897]
[1739821670654,0.8124,2718.6,2717.9,3.67922]
[1739821670853,1.31291949,2718.6,2717.9,7.35844]
[1739821671054,1.31291949,2718.6,2717.9,3.67922]
[1739821671256,1.31291949,2718.6,2718.0,3.67914]
[1739821671467,1.31291949,2718.6,2718.1,3.67901]
[1739821672262,5.97378851,2718.6,2718.0,3.67917]
[1739821672760,5.97378851,2718.6,2718.0,3.67911]
[1739821673529,5.97378851,2718.6,2717.7,0.7586]
[1739821673530,5.47326902,2718.6,2717.7,4.43816]
[1739821673755,5.47326902,2718.6,2718.1,3.67896]
[1739821674057,5.47326902,2718.6,2718.2,3.67888]
[1739821674265,5.47326902,2718.6,2718.1,3.67896]
[1739821674568,5.47326902,2718.6,2718.2,3.67882]
[1739821675062,5.47326902,2718.6,2717.7,0.7586]
[1739821675267,5.47326902,2718.6,2718.2,3.67877]
[1739821675427,5.47326902,2718.6,2718.3,3.67872]
[1739821675629,5.47326902,2718.6,2718.1,3.67897]
[1739821676255,5.47326902,2718.6,2718.2,3.67883]
[1739821676459,5.47326902,2718.6,2718.3,3.67869]
[1739821678191,0.8316,2718.8,2718.4,3.67856]
[1739821680089,0.8316,2718.8,2718.5,3.67849]
[1739821681275,0.8316,2718.8,2718.4,3.67862]
[1739821681775,0.8316,2718.8,2718.5,7.35682]
[1739821682085,0.8316,2718.8,2718.3,0.03678293]
[1739821682285,0.8316,2718.8,2718.5,3.67849]
[1739821682976,0.8316,2718.8,2718.4,3.67862]
[1739821683674,0.8316,2718.8,2718.4,3.67854]
[1739821683871,0.8316,2718.8,2718.6,3.67835]
[1739821684455,0.8316,2718.8,2718.4,3.67854]
[1739821684888,0.8316,2718.8,2718.3,0.03678293]
[1739821685185,4.66086902,2718.9,2718.6,3.67829]
[1739821685611,4.66086902,2718.9,2718.7,3.67815]
[1739821686134,4.66086902,2718.9,2718.7,3.67822]
[1739821686290,4.66086902,2719.3,2718.8,0.8045]
[1739821686500,3.67602,2720.4,2718.8,0.8045]
[1739821686501,0.7968,2719.8,2719.6,3.67696]
[1739821686809,0.7968,2720.4,2719.7,3.67687]
[1739821686990,4.47274,2720.4,2719.6,3.67689]
[1739821687408,4.98959485,2720.2,2719.4,0.8045]
[1739821687693,3.67648,2720.0,2719.2,0.8045]
[1739821687895,4.98959485,2719.9,2719.2,3.67747]
[1739821688319,4.76427049,2720.2,2718.8,0.8045]
[1739821688320,4.19279485,2719.6,2718.8,0.8045]
[1739821688597,0.7968,2719.4,2718.7,3.67816]
[1739821688807,0.7968,2719.2,2718.4,3.67856]
[1739821688968,4.19279485,2719.0,2718.4,0.367856]
[1739821689173,0.7968,2718.9,2718.0,4.48358]
[1739821689405,0.7968,2718.9,2718.2,3.67881]
[1739821689570,0.7968,2718.9,2718.3,3.67865]
[1739821689773,0.7968,2718.9,2718.2,3.67881]
[1739821690016,3.6779,2719.0,2718.3,3.67873]
[1739821690327,3.6779,2719.0,2717.7,3.67955]
[1739821690328,4.95729485,2719.6,2718.5,0.7757]
[1739821690478,0.7645,2719.2,2718.6,3.67825]
[1739821690804,0.7645,2719.2,2718.5,4.45413]
[1739821691007,3.67769,2719.1,2718.3,3.67868]
[1739821691206,4.4426,2718.8,2718.0,3.6791]
[1739821691610,0.7645,2718.7,2718.0,3.6791]
[1739821691773,0.7645,2718.7,2718.1,3.67903]
[1739821692276,0.7645,2718.7,2718.4,3.67855]
[1739821692499,4.19279485,2719.2,2718.0,0.03678664]
[1739821692702,0.7645,2718.9,2718.5,7.35686]
[1739821693008,0.7645,2719.1,2718.7,3.67821]
[1739821693533,0.7645,2719.1,2718.3,4.45443]
[1739821693740,5.46896902,2719.3,2718.9,3.67794]
[1739821694114,2.0,2720.1,2718.9,3.67794]
[1739821694115,6.55702951,2720.2,2719.0,0.793]
[1739821694316,6.55702951,2720.2,2719.4,3.67719]
[1739821694505,14.42609436,2720.2,2719.4,3.67719]
[1739821694699,14.42609436,2720.2,2718.6,4.4648]
[1739821694700,3.7664,2719.7,2718.6,4.4648]
[1739821694933,0.7664,2718.9,2718.1,3.6789]
[1739821695253,0.7664,2718.9,2718.6,3.67826]
[1739821695560,0.7664,2718.9,2718.6,3.67835]
[1739821696330,0.7664,2718.9,2718.8,3.67809]
[1739821696549,0.7664,2718.9,2718.7,3.67814]
[1739821696750,4.44396,2719.2,2718.5,3.67847]
[1739821697067,4.44396,2719.2,2718.2,3.67882]
[1739821697369,0.7664,2719.2,2718.0,4.14517866]
[1739821697572,0.7664,2719.2,2718.6,3.67826]
[1739821697775,0.7664,2719.2,2718.4,3.67857]
[1739821698068,0.7664,2718.5,2717.6,4.46617]
[1739821698217,0.7664,2718.5,2717.7,3.67957]
[1739821698218,4.19279485,2718.4,2717.7,3.67957]
[1739821698631,4.19279485,2718.4,2717.6,0.7865]
[1739821698632,7.87145485,2718.4,2717.6,0.7865]
[1739821698833,0.7664,2718.0,2717.1,0.73975916]
[1739821699049,0.7664,2718.0,2717.4,3.67996]
[1739821699254,0.7664,2718.0,2717.5,3.67976]
[1739821699465,0.7664,2718.0,2717.5,7.35952]
[1739821699670,0.7664,2718.0,2717.6,3.67969]
[1739821700340,0.7664,2718.0,2717.6,3.67963]
[1739821700546,0.7664,2718.0,2717.8,3.67942]
[1739821701065,0.8266,2718.4,2717.7,3.67951]
[1739821701274,0.8266,2718.4,2717.7,3.67949]
[1739821701417,0.8266,2718.4,2717.8,3.67935]
[1739821701623,0.8266,2718.4,2717.7,3.67949]
[1739821701932,5.48746902,2718.4,2717.7,4.0842153]
[1739821702145,5.48746902,2718.4,2717.7,7.35896]
[1739821702462,5.48746902,2718.4,2717.8,3.67944]
[1739821702851,4.66086902,2718.4,2717.9,3.67921]
[1739821703073,4.66086902,2718.4,2717.9,3.67918]
[1739821703428,4.66086902,2718.4,2717.7,7.359]
[1739821703641,4.66086902,2718.4,2717.8,3.67942]
[1739821704186,4.66086902,2718.4,2717.7,3.67946]
[1739821704187,4.66086902,2718.4,2718.0,3.67913]
[1739821705488,4.66086902,2718.4,2717.8,3.67933]
[1739821705691,0.7968,2718.3,2717.8,3.67933]
[1739821705870,0.7968,2718.3,2717.6,3.67963]
[1739821706194,0.7968,2718.3,2717.3,4.42935781]
[1739821706348,0.7968,2718.3,2718.0,3.67906]
[1739821706760,0.7968,2718.3,2718.1,3.67894]
[1739821706991,0.7968,2718.3,2718.2,3.6789]
[1739821707132,0.7968,2718.3,2718.0,3.67906]
[1739821707544,0.7968,2718.3,2717.8,3.67936]
[1739821707972,0.7968,2718.3,2717.9,3.6793]
[1739821708545,4.98959485,2718.3,2717.4,4.56010578]
[1739821708751,4.66086902,2718.2,2717.5,3.67976]
[1739821708933,4.66086902,2718.2,2717.5,3.67985]
[1739821709137,4.66086902,2718.2,2717.5,3.71658458]
[1739821709467,4.66086902,2718.2,2717.6,3.67961]
[1739821709836,4.66086902,2718.2,2717.7,3.67951]
[1739821710033,4.66086902,2718.2,2717.3,0.03679457]
[1739821710258,4.66086902,2718.2,2717.8,3.67935]
[1739821710745,4.66086902,2718.2,2717.8,3.67933]
[1739821710945,4.66086902,2718.2,2717.7,3.67956]
[1739821711146,4.66086902,2718.2,2717.8,3.67937]
[1739821711762,4.66086902,2718.2,2717.7,3.67956]
[1739821711958,9.25347292,2718.2,2717.5,3.67978]
[1739821712160,8.33983902,2718.2,2717.5,3.67978]
[1739821712373,0.8194,2718.0,2717.4,7.35989]
[1739821712539,0.8194,2718.0,2717.4,3.67991]
[1739821713847,9.15944902,2718.0,2717.4,3.67991]
[1739821714054,3.67938,2717.9,2717.2,3.68015]
[1739821714249,0.8268,2717.7,2717.0,3.68045]
[1739821714450,0.8268,2717.7,2717.2,3.68025]
[1739821714854,0.8268,2717.7,2717.0,3.68045]
[1739821715061,0.8268,2717.7,2717.1,3.68038]
[1739821715378,0.8268,2717.7,2717.4,3.67992]
[1739821715680,0.8268,2717.7,2717.2,3.68015]
[1739821715849,0.8268,2717.7,2717.3,3.68004]
[1739821717043,0.8268,2717.7,2717.1,3.68028]
[1739821717382,0.8268,2717.7,2717.2,3.68024]
[1739821717769,0.8268,2717.7,2717.1,3.68028]
[1739821717967,1.498932,2717.7,2717.1,3.68028]
[1739821718571,5.178522,2717.7,2717.1,3.68028]
[1739821719061,1.498932,2717.7,2717.1,3.68028]
[1739821719250,5.178542,2717.7,2717.1,3.68028]
[1739821719451,0.8268,2717.7,2717.2,3.68018]
[1739821719677,5.48766902,2717.7,2717.2,3.68018]
[1739821720182,5.48766902,2717.7,2716.9,0.7961]
[1739821720183,7.70266902,2717.7,2716.9,3.68056]
[1739821720480,0.7595,2717.4,2717.0,3.68043]
[1739821720690,0.7595,2717.4,2716.9,3.68066]
[1739821720890,0.7595,2717.4,2716.8,3.6807]
[1739821721185,5.42036902,2717.4,2716.8,3.6807]
[1739821721480,6.69838692,2717.4,2716.8,7.36143]
[1739821721686,6.69838692,2717.4,2716.8,3.6807]
[1739821722794,6.69838692,2717.4,2716.8,7.36137]
[1739821722991,6.69838692,2717.4,2716.8,3.68067]
[1739821723358,6.69838692,2717.4,2716.4,1.51644223]
[1739821723696,5.42036902,2717.4,2716.8,3.68071]
[1739821724957,5.42036902,2717.4,2716.9,3.68058]
[1739821726793,5.42036902,2717.4,2717.0,3.68049]
[1739821726994,5.42036902,2717.4,2717.1,3.68035]
[1739821727163,5.42036902,2717.4,2717.2,3.68022]
[1739821727496,5.42036902,2717.4,2717.1,3.68035]
[1739821727795,5.42036902,2717.4,2717.1,8.096741]
[1739821728092,5.42036902,2717.4,2717.1,0.736091]
[1739821728299,5.42036902,2717.4,2717.0,3.68047]
[1739821728899,5.42036902,2717.4,2717.2,3.68019]
[1739821729094,5.42036902,2717.4,2716.5,3.51978522]
[1739821729392,5.42036902,2717.4,2717.2,3.68024]
[1739821730363,5.42036902,2717.4,2717.2,3.68023]
[1739821730605,5.42036902,2717.4,2717.1,3.68027]
[1739821730774,4.66086902,2717.4,2717.3,3.68012]
[1739821731464,0.7724,2717.7,2717.3,3.68012]
[1739821731695,0.7724,2717.7,2717.2,3.68025]
[1739821732691,0.7724,2717.7,2717.1,0.368027]
[1739821733092,3.67988,2717.5,2716.8,3.68069]
[1739821733292,0.828,2717.4,2716.8,7.36143]
[1739821733472,0.828,2717.4,2716.9,3.68053]
[1739821734591,3.68016,2717.3,2716.7,3.68085]
[1739821734792,4.50799,2717.4,2716.8,3.68076]
[1739821734993,4.50799,2717.4,2716.9,3.68066]
[1739821734994,0.828,2717.4,2716.9,3.68066]
[1739821735308,3.68019,2717.3,2716.7,3.68085]
[1739821735811,0.828,2717.4,2716.8,3.68075]
[1739821735812,4.50805,2717.4,2716.8,3.68075]
[1739821736015,0.828,2717.4,2716.9,3.68055]
[1739821736187,0.828,2717.4,2716.7,0.86323352]
[1739821736392,0.828,2717.4,2716.9,3.68063]
[1739821736587,0.828,2717.4,2716.7,0.03680496]
[1739821736891,0.828,2717.4,2717.1,3.68026]
[1739821737277,0.828,2717.4,2716.8,3.6808]
[1739821737480,0.828,2717.4,2716.9,3.6806]
[1739821737481,5.48886902,2717.4,2716.9,3.6806]
[1739821737694,5.48886902,2717.4,2717.0,0.36806]
[1739821738003,5.48886902,2717.4,2716.9,3.68064]
[1739821738208,5.48886902,2717.4,2716.7,3.68085]
[1739821738209,3.6802,2717.3,2716.7,3.68085]
[1739821738409,11.38396902,2717.4,2716.8,3.68078]
[1739821738610,15.06408902,2717.4,2716.8,3.68078]
[1739821738925,3.6802,2717.3,2716.7,3.68086]
[1739821739303,3.6802,2717.3,2716.8,3.68077]
[1739821739611,11.38385902,2717.4,2716.8,3.68069]
[1739821740226,7.70386902,2717.4,2716.9,3.68065]
[1739821740411,5.48886902,2717.4,2717.0,0.0368052]
[1739821740622,5.48886902,2717.4,2717.3,3.68012]
[1739821740623,4.66086902,2717.4,2717.3,3.68012]
[1739821740997,4.66086902,2717.4,2717.0,4.44942]
[1739821741195,4.66086902,2717.4,2717.3,3.68012]
[1739821741416,4.66086902,2717.4,2717.2,3.68023]
[1739821741623,4.66086902,2717.4,2717.1,4.125312]
[1739821741818,6.87586902,2717.4,2716.5,0.7809]
[1739821742023,0.7762,2717.3,2716.8,3.68072]
[1739821742808,4.45635,2717.3,2716.8,3.68072]
[1739821743333,0.7762,2717.3,2716.9,3.6806]
[1739821743532,5.43706902,2717.3,2716.8,3.68072]
[1739821743915,3.68026,2717.2,2716.7,3.68093]
[1739821744214,9.11719902,2717.3,2716.8,3.68077]
[1739821745535,5.43706902,2717.3,2716.9,3.68056]
[1739821745915,5.43706902,2717.3,2716.8,3.68069]
[1739821746601,5.43706902,2717.3,2716.9,3.6806]
[1739821746803,5.43706902,2717.3,2716.5,0.7809]
[1739821747030,5.43706902,2717.3,2716.8,3.68072]
[1739821748238,5.43706902,2717.3,2716.8,3.6807]
[1739821748403,9.11718902,2717.3,2716.8,3.6807]
[1739821748735,5.43706902,2717.3,2716.8,3.6807]
[1739821749445,5.43706902,2717.3,2716.9,3.68062]
[1739821749607,5.43706902,2717.3,2716.7,3.68093]
[1739821749804,5.43706902,2717.3,2716.8,3.68078]
[1739821750531,5.43706902,2717.3,2716.7,3.68092]
[1739821750532,3.68032,2717.2,2716.7,3.68092]
[1739821750733,5.43706902,2717.3,2716.7,3.68092]
[1739821750903,9.11719902,2717.3,2716.7,7.36173]
[1739821751105,5.43706902,2717.3,2716.9,3.6806]
[1739821751321,5.43706902,2717.3,2716.8,0.8259]
[1739821751610,4.66086902,2717.3,2717.2,3.68025]
[1739821752027,0.8249,2717.6,2717.2,3.68025]
[1739821752223,4.66086902,2717.8,2717.7,3.67958]
[1739821752626,4.66086902,2717.8,2717.7,6.67958]
[1739821753158,4.66086902,2717.8,2717.4,3.67992]
[1739821753471,0.7982,2717.7,2717.4,3.67992]
[1739821754121,0.7982,2717.7,2717.2,3.68016]
[1739821754527,0.7982,2717.7,2717.3,3.68009]
[1739821755620,0.7982,2717.7,2717.5,3.67977]
[1739821756048,0.7982,2717.7,2717.6,3.67971]
[1739821756422,4.66086902,2717.8,2717.6,3.67971]
[1739821756622,4.66086902,2717.8,2717.6,3.67963]
[1739821756840,4.66086902,2717.8,2717.5,6.67984]
[1739821757047,4.66086902,2717.8,2717.5,6.67983]
[1739821757447,4.66086902,2717.8,2717.6,3.67968]
[1739821757836,4.66086902,2717.8,2717.6,3.67963]
[1739821758755,4.66086902,2717.8,2717.7,3.67958]
[1739821759123,4.66086902,2717.8,2717.7,6.67958]
[1739821759660,4.66086902,2717.8,2717.7,3.67958]
[1739821759859,0.7989,2717.7,2717.3,3.68011]
[1739821760169,1.7128239,2717.7,2717.1,3.68039]